bitfinex-derivatives/quotes_ETHF0:USTF0_20251204
["timestamp","ask_amount","ask_price","bid_price","bid_amount"]
[1764842254154,1.47768406,3201.4,3201.3,3.0815364]
[1764842254353,1.47768406,3201.4,3201.3,1.65067]
[1764842258862,0.73778406,3201.4,3201.3,1.65067]
[1764842259556,1.47768406,3201.4,3201.3,1.65067]
[1764842259958,0.73778406,3201.4,3201.3,1.65067]
[1764842260164,0.00468406,3201.4,3201.3,1.65067]
[1764842261065,1.50908406,3201.4,3201.3,1.62217]
[1764842262564,0.00468406,3201.4,3201.3,1.62217]
[1764842262968,0.76788406,3201.4,3201.3,1.62217]
[1764842263171,1.53918406,3201.4,3201.3,1.62217]
[1764842264467,1.53918406,3201.4,3201.3,0.15617]
[1764842264861,1.53918406,3201.4,3201.3,0.92017]
[1764842265875,2.53060952,3201.4,3201.3,0.92017]
[1764842269174,2.53060952,3201.4,3201.3,0.15617]
[1764842273276,2.53060952,3201.4,3201.3,0.92017]
[1764842273977,2.53060952,3201.4,3201.3,0.15617]
[1764842274673,2.53060952,3201.4,3201.3,0.92017]
[1764842275178,2.53060952,3201.4,3201.3,0.15617]
[1764842278583,4.21415143,3201.4,3201.3,0.15617]
[1764842279985,4.21415143,3201.4,3201.3,0.92017]
[1764842281587,4.21415143,3201.4,3201.3,0.15617]
[1764842282383,1.5345,3201.1,3201.0,0.77209586]
[1764842282690,2.52592546,3201.1,3201.0,0.77209586]
[1764842282889,2.52592546,3201.1,3201.0,0.00809586]
[1764842283085,2.52592546,3201.1,3201.0,0.77209586]
[1764842283285,2.52592546,3201.1,3201.0,0.92827586]
[1764842283588,2.52592546,3201.1,3201.0,0.16427586]
[1764842285889,2.52592546,3201.1,3201.0,0.90897586]
[1764842286392,2.52592546,3201.1,3201.0,0.16427586]
[1764842298303,2.52592546,3201.1,3201.0,1.55908334]
[1764842298902,2.52592546,3201.1,3201.0,0.16427586]
[1764842300411,5.73372546,3201.1,3201.0,0.16427586]
[1764842304505,5.73372546,3201.1,3200.7,1.39480748]
[1764842304695,3.16877564,3200.8,3200.7,1.55100748]
[1764842304897,4.1602011,3200.8,3200.7,1.55100748]
[1764842305605,4.16402571,3200.8,3200.7,1.55456135]
[1764842306313,2.47965007,3200.8,3200.7,1.55456135]
[1764842306502,4.16402571,3200.8,3200.7,1.55456135]
[1764842307202,4.16402571,3200.8,3200.7,0.15975387]
[1764842307403,1.4844,3200.3,3200.2,4.60260748]
[1764842307611,2.47582546,3200.3,3200.2,4.60260748]
[1764842307806,2.47582546,3200.3,3200.2,4.75882748]
[1764842308012,2.47582546,3200.3,3200.2,3.36402]
[1764842308307,2.47582546,3200.3,3200.2,0.1602072]
[1764842308507,4.15950569,3200.3,3200.2,0.1602072]
[1764842310310,0.99142546,3200.3,3200.2,1.6718072]
[1764842310904,0.76612461,3200.8,3200.7,1.5116]
[1764842311099,1.48822461,3200.8,3200.7,2.90640748]
[1764842311318,1.48822461,3200.8,3200.7,0.1562]
[1764842313310,1.48822461,3200.8,3200.7,0.9009]
[1764842314020,1.48822461,3200.8,3200.7,0.1562]
[1764842314311,1.48822461,3200.8,3200.7,1.6255]
[1764842314516,1.48822461,3200.8,3200.7,3.05652012]
[1764842315715,1.48822461,3200.8,3200.7,3.05651662]
[1764842316015,1.48822461,3200.8,3200.7,2.28941662]
[1764842316612,1.48822461,3200.8,3200.7,1.58721662]
[1764842318015,1.48822461,3200.8,3200.7,3.05651662]
[1764842318822,1.48822461,3200.8,3200.7,0.1561965]
[1764842319018,1.48822461,3200.8,3200.7,2.28941662]
[1764842319221,1.48822461,3200.8,3200.7,3.05651662]
[1764842319522,0.76612461,3200.8,3200.7,3.05651662]
[1764842320023,1.51802461,3200.8,3200.7,3.05651662]
[1764842320318,1.51802461,3200.8,3200.7,2.28941662]
[1764842320523,1.51802461,3200.8,3200.7,1.58721662]
[1764842322925,2.56925026,3200.8,3200.7,1.58721662]
[1764842324931,4.25293049,3200.8,3200.7,1.58721662]
[1764842328830,2.56925026,3200.8,3200.7,1.58721662]
[1764842329128,43.36925026,3200.8,3200.7,0.1561965]
[1764842329520,2.56925026,3200.8,3200.7,0.1561965]
[1764842330030,43.36925026,3200.8,3200.7,0.1561965]
[1764842330432,43.36925026,3200.8,3200.7,1.58721662]
[1764842336032,2.56925026,3200.8,3200.7,1.58721662]
[1764842336338,2.92595586,3200.8,3200.7,1.58721662]
[1764842336629,2.92595586,3200.8,3200.7,1.43102012]
[1764842336933,0.7134,3200.3,3200.2,3.06052732]
[1764842337135,2.73556542,3200.3,3200.2,3.06052732]
[1764842337432,1.05122565,3200.3,3200.2,3.06052732]
[1764842337628,1.68433977,3200.5,3200.4,0.15621]
[1764842337833,2.49233317,3200.5,3200.4,1.62551]
[1764842338030,1.74043317,3200.5,3200.4,3.05653012]
[1764842338623,1.02703317,3200.5,3200.4,3.05653012]
[1764842341830,2.80253317,3200.5,3200.4,1.62551]
[1764842342034,2.80253317,3200.5,3200.4,3.14473012]
[1764842342937,2.80253317,3200.5,3200.4,2.28943012]
[1764842343436,2.80253317,3200.5,3200.4,3.14473012]
[1764842345339,1.92613317,3200.5,3200.4,3.14473012]
[1764842345635,1.02703317,3200.5,3200.4,3.14473012]
[1764842346137,2.73693317,3200.5,3200.4,1.86761]
[1764842346333,1.88503317,3200.5,3200.4,1.86761]
[1764842346530,2.73693317,3200.5,3200.4,0.98011]
[1764842346732,2.73693317,3200.5,3200.4,0.15621]
[1764842347137,3.10037029,3200.5,3200.4,0.15621]
[1764842347335,2.73693317,3200.5,3200.4,0.15621]
[1764842347735,3.10035037,3200.5,3200.4,0.15621]
[1764842348243,2.73693317,3200.5,3200.4,0.15621]
[1764842348641,2.73693317,3200.5,3200.4,0.98011]
[1764842350343,3.10039474,3200.5,3200.4,1.86761]
[1764842350542,2.73693317,3200.5,3200.4,1.86761]
[1764842352542,3.10046281,3200.5,3200.4,1.86761]
[1764842356447,3.10046281,3200.5,3200.4,0.98011]
[1764842356644,3.46726281,3200.5,3200.2,0.0039872]
[1764842356848,1.7099,3200.3,3200.2,1e-08]
[1764842357051,4.786337,3200.3,3200.2,0.82390001]
[1764842357251,45.586337,3200.3,3200.2,0.82390001]
[1764842357651,43.876437,3200.3,3200.2,1e-08]
[1764842359853,1.7099,3199.6,3199.5,3.32162012]
[1764842360155,2.73693317,3199.6,3199.5,3.32162012]
[1764842360359,2.73693317,3199.6,3199.5,3.47788012]
[1764842360853,2.73693317,3199.6,3199.5,3.4809362]
[1764842363956,2.73693317,3199.6,3199.5,2.5934362]
[1764842364256,2.73693317,3199.6,3199.5,0.98321608]
[1764842364954,2.73693317,3199.6,3199.5,2.36801608]
[1764842365162,1.02703317,3199.6,3199.5,2.36801608]
[1764842366763,1.7099,3200.2,3200.1,0.8875]
[1764842366966,1.7099,3200.2,3200.1,1.7114]
[1764842368765,1.7099,3200.2,3200.1,1.86763]
[1764842371664,1.7099,3200.2,3200.1,3.29865012]
[1764842374068,1.7099,3200.2,3200.1,2.41115012]
[1764842374460,1.7099,3200.2,3200.1,0.15623]
[1764842375161,1.7099,3200.2,3200.1,1.00003]
[1764842375469,1.7099,3200.2,3200.1,0.15623]
[1764842378675,2.70386044,3200.2,3200.1,0.15623]
[1764842381374,2.70386044,3200.2,3200.1,1.00003]
[1764842381675,2.70386044,3200.2,3200.1,1.88163]
[1764842382379,2.70386044,3200.2,3200.1,1.79763]
[1764842383379,2.70386044,3200.2,3200.1,1.00003]
[1764842383777,2.70386044,3200.2,3200.1,0.15623]
[1764842385884,2.70386044,3200.2,3200.1,0.98853]
[1764842386280,3.06737185,3200.2,3200.1,0.98853]
[1764842386899,3.06737185,3200.2,3200.1,1.78613]
[1764842388079,3.06737185,3200.2,3200.1,0.98853]
[1764842388278,3.06737185,3200.2,3200.1,0.15623]
[1764842389285,6.27517185,3200.2,3200.1,0.15623]
[1764842392192,6.27519632,3200.2,3200.1,0.15623]
[1764842393494,6.27519632,3200.2,3200.1,0.98853]
[1764842394088,6.27519632,3200.2,3200.1,0.15623]
[1764842396387,6.27519632,3200.2,3200.1,1.78613]
[1764842396588,6.27519632,3200.2,3200.1,0.98853]
[1764842396790,6.27519632,3200.2,3200.1,0.15623]
[1764842397191,7.96021112,3200.2,3200.1,0.15623]
[1764842398695,7.96021112,3200.2,3200.1,0.98853]
[1764842398896,7.96021112,3200.2,3200.1,1.78613]
[1764842399297,6.27519632,3200.2,3200.1,1.78613]
[1764842400401,5.42329632,3200.2,3200.1,1.78613]
[1764842400601,5.04816044,3200.2,3200.1,1.78613]
[1764842400802,4.20176044,3200.2,3200.1,1.78613]
[1764842401004,0.99396044,3200.2,3200.1,1.78613]
[1764842404002,1.84036044,3200.2,3200.1,1.78613]
[1764842405603,2.69336044,3200.2,3200.1,1.78613]
[1764842407410,1.84036044,3200.2,3200.1,1.78613]
[1764842407619,2.69336044,3200.2,3200.1,1.78613]
[1764842408809,1.84036044,3200.2,3200.1,1.78613]
[1764842409103,0.99396044,3200.2,3200.1,1.78613]
[1764842411809,1.78926044,3200.2,3200.1,1.78613]
[1764842414311,2.64226044,3200.2,3200.1,1.78613]
[1764842414914,1.78926044,3200.2,3200.1,1.78613]
[1764842415717,2.64226044,3200.2,3200.1,1.78613]
[1764842417917,1.78926044,3200.2,3200.1,1.78613]
[1764842418411,2.64226044,3200.2,3200.1,1.78613]
[1764842418715,1.78926044,3200.2,3200.1,1.78613]
[1764842419614,0.00382461,3200.8,3200.7,1.7596]
[1764842419918,1.6483,3201.3,3201.2,0.7601]
[1764842420108,2.01164044,3201.3,3201.2,0.7601]
[1764842420413,1.6483,3201.3,3201.2,0.7601]
[1764842420916,1.65141693,3201.3,3201.2,0.7601]
[1764842421310,1.65141693,3201.3,3201.2,1.75957]
[1764842423113,0.00311693,3201.3,3201.2,1.75957]
[1764842423317,0.00468406,3201.4,3201.3,1.75957]
[1764842423517,1.65298406,3201.4,3201.3,1.75957]
[1764842424316,1.65571958,3201.4,3201.3,1.75957]
[1764842424907,1.65571958,3201.4,3201.3,0.91627]
[1764842425115,1.65571958,3201.4,3201.3,0.15617]
[1764842431522,2.60636793,3201.4,3201.3,0.15617]
[1764842434021,5.81416793,3201.4,3201.3,0.15617]
[1764842434625,5.81416793,3201.4,3201.3,0.90857]
[1764842435823,5.81416793,3201.4,3201.3,0.15617]
[1764842439420,2.60636793,3201.4,3201.3,0.15617]
[1764842439624,5.81416793,3201.4,3201.3,0.15617]
[1764842442112,5.81416793,3201.4,3200.7,0.1562]
[1764842442113,0.3764,3201.0,3200.7,0.1562]
[1764842442319,1.486,3200.8,3200.7,0.1562]
[1764842442522,2.4326338,3200.8,3200.7,0.8743]
[1764842442921,2.4326338,3200.8,3200.7,1.6558]
[1764842443120,0.9466338,3200.8,3200.7,3.08682159]
[1764842443318,3.9761,3201.0,3200.9,1.65579]
[1764842443518,4.92287464,3201.0,3200.9,3.08681159]
[1764842443726,4.15457464,3201.0,3200.9,3.08681159]
[1764842445626,3.98351958,3201.4,3201.3,1.65577]
[1764842445926,1.7228223,3201.4,3201.3,3.08679159]
[1764842446117,0.9545223,3201.4,3201.3,3.08679159]
[1764842449128,0.9545223,3201.4,3201.3,1.65577]
[1764842449331,2.4405223,3201.4,3201.3,3.08679159]
[1764842450923,2.4405223,3201.4,3201.3,0.15617]
[1764842451628,5.6483223,3201.4,3201.3,0.15617]
[1764842451828,6.01152645,3201.4,3201.3,0.15617]
[1764842454234,1.505,3200.6,3200.5,3.36132159]
[1764842454630,0.7575,3200.6,3200.5,3.36132159]
[1764842455131,0.7575,3201.0,3200.9,1.5007]
[1764842455326,1.7058879,3201.0,3200.9,2.93172159]
[1764842455531,2.4533879,3201.0,3200.9,2.93172159]
[1764842456028,2.4533879,3201.0,3200.9,1.5007]
[1764842456234,2.4533879,3201.0,3200.9,1.65689]
[1764842457034,2.9012879,3201.0,3200.9,0.15619]
[1764842458831,2.4533879,3201.0,3200.9,1.65689]
[1764842459233,0.9483879,3201.0,3200.9,1.65689]
[1764842459435,0.9483879,3201.0,3200.9,5.6398523]
[1764842460339,3.21521958,3201.4,3201.3,1.65687]
[1764842460544,5.66698552,3201.4,3201.3,1.65687]
[1764842463644,5.66698552,3201.4,3201.3,1.62727]
[1764842463842,4.16198552,3201.4,3201.3,1.62727]
[1764842464034,0.95418552,3201.4,3201.3,1.62727]
[1764842464741,3.2078,3201.8,3201.7,1.58825]
[1764842465038,4.6466,3201.8,3201.7,1.58825]
[1764842465633,4.64901078,3201.8,3201.7,1.58825]
[1764842469343,0.00241078,3201.8,3201.7,3.01927159]
[1764842471036,0.00468406,3202.1,3202.0,0.15613]
[1764842471243,0.00468406,3202.1,3202.0,3.46285159]
[1764842472139,0.00707192,3202.1,3202.0,3.46580478]
[1764842473944,4.6466,3202.6,3202.5,1.58821]
[1764842474240,4.6466,3202.6,3202.5,0.86191]
[1764842474437,4.6466,3202.6,3202.5,0.15611]
[1764842475041,4.64903043,3202.6,3202.5,1.58821]
[1764842475444,3.21023043,3202.6,3202.5,3.46283159]
[1764842476138,3.92123043,3202.6,3202.5,3.46283159]
[1764842477542,0.00243043,3202.6,3202.5,3.46283159]
[1764842482253,0.00468406,3202.9,3202.8,1.5882]
[1764842482551,0.00468406,3202.9,3202.8,6.22702159]
[1764842483442,0.00693593,3202.9,3202.8,6.22702159]
[1764842483663,0.00693593,3202.9,3202.8,10.2168299]
[1764842486348,0.711,3203.7,3203.6,1.58816]
[1764842486545,0.711,3203.7,3203.6,3.01918159]
[1764842486847,1.4388,3203.7,3203.6,3.01918159]
[1764842487349,1.44252542,3203.7,3203.6,3.01918159]
[1764842487551,0.71472542,3203.7,3203.6,3.01918159]
[1764842487850,0.00372542,3203.7,3203.6,3.01918159]
[1764842488052,0.71472542,3203.7,3203.6,3.01918159]
[1764842489853,0.00372542,3203.7,3203.6,3.01918159]
[1764842492658,1.44252542,3203.7,3203.6,3.01918159]
[1764842493062,1.44252542,3203.7,3203.6,0.15606]
[1764842493353,1.4388,3203.4,3203.3,0.00468406]
[1764842493554,1.4388,3203.0,3202.9,4.79599]
[1764842497561,1.4432,3203.0,3202.9,4.79599]
[1764842498259,1.8658,3203.0,3202.9,3.36389]
[1764842498457,1.8658,3203.0,3202.9,4.09489]
[1764842498862,2.80182527,3203.0,3202.9,0.15609]
[1764842499063,1.4442,3202.7,3202.6,0.00468406]
[1764842499266,2.38022527,3202.7,3202.6,0.00468406]
[1764842499649,2.38022527,3202.7,3202.6,0.73568406]
[1764842500159,2.38022527,3202.7,3202.6,0.00468406]
[1764842501761,5.58802527,3202.7,3202.6,0.00468406]
[1764842503361,5.58802527,3202.7,3202.0,3.65435319]
[1764842503563,1.4312,3202.1,3202.0,5.28568319]
[1764842505267,1.4312,3202.1,3202.0,0.15908319]
[1764842506862,1.4312,3201.8,3201.7,0.00468406]
[1764842507067,5.57517026,3201.8,3201.7,0.00468406]
[1764842507369,5.57482075,3201.8,3201.7,0.00468406]
[1764842507874,5.57482075,3201.8,3201.7,0.00874027]
[1764842509169,4.639,3201.8,3201.7,0.00874027]
[1764842510672,3.2078,3201.8,3201.7,1.48394027]
[1764842510868,3.9266,3201.8,3201.7,1.48394027]
[1764842512169,4.639,3201.8,3201.7,0.16489027]
[1764842512569,4.639,3201.8,3201.7,0.90469027]
[1764842512770,4.639,3201.8,3201.7,1.64009027]
[1764842515678,4.639,3201.8,3201.7,0.16489027]
[1764842516077,4.639,3201.8,3201.7,0.90469027]
[1764842516478,4.639,3201.8,3201.7,0.16489027]
[1764842518775,1.4312,3201.8,3201.7,0.16489027]
[1764842519076,1.4312,3201.8,3201.7,0.49779027]
[1764842521681,1.4312,3201.8,3201.7,1.97299027]
[1764842522372,1.4312,3201.8,3201.7,0.49779027]
[1764842525082,2.36704391,3201.8,3201.7,0.49779027]
[1764842527383,2.36704391,3201.8,3201.7,2.04259027]
[1764842527384,0.93584391,3201.8,3201.7,2.04259027]
[1764842527578,0.7564,3202.0,3201.9,0.15614]
[1764842527885,2.794962,3202.0,3201.9,0.15614]
[1764842528179,2.794962,3202.0,3201.9,0.93214]
[1764842528387,2.456762,3202.0,3201.9,1.70094]
[1764842530284,2.456762,3202.0,3201.9,0.93214]
[1764842533784,0.937062,3202.0,3201.9,1.70094]
[1764842534087,0.937062,3202.0,3201.9,4.90874]
[1764842534588,0.76798406,3202.4,3202.3,1.70092]
[1764842534882,0.00468406,3202.4,3202.3,1.70092]
[1764842535081,3.2078,3202.8,3202.5,0.428]
[1764842535286,4.7275,3202.8,3202.7,1.5448]
[1764842536289,4.7275,3202.8,3202.7,1.7009]
[1764842537983,0.7633,3202.8,3202.7,1.7009]
[1764842538185,1.52438406,3203.1,3203.0,0.776]
[1764842539389,1.5197,3203.0,3202.9,0.93209]
[1764842540691,1.8565,3203.0,3202.9,0.93209]
[1764842541191,1.8565,3203.0,3202.9,0.15609]
[1764842542391,1.8565,3203.0,3202.9,0.93209]
[1764842542593,1.8565,3203.0,3202.9,0.15609]
[1764842545394,1.5197,3203.0,3202.9,1.70089]
[1764842545781,0.00468406,3203.1,3203.0,2.12889]
[1764842545985,1.52438406,3203.1,3203.0,2.12889]
[1764842546290,1.52438406,3203.1,3203.0,0.15609]
[1764842550404,2.45681831,3203.1,3203.0,0.15609]
[1764842555108,5.66461831,3203.1,3203.0,0.15609]
[1764842556511,2.45681831,3203.1,3203.0,0.15609]
[1764842557210,5.66461831,3203.1,3203.0,0.15609]
[1764842557411,6.02701273,3203.1,3203.0,0.15609]
[1764842558107,0.3376,3203.0,3202.4,0.15611]
[1764842558313,3.30288958,3202.5,3202.4,0.15611]
[1764842558511,4.23532383,3202.5,3202.4,0.15611]
[1764842558815,1.4817,3201.8,3201.7,0.00874027]
[1764842559003,1.4817,3201.3,3201.2,0.87217]
[1764842559402,42.19388958,3201.7,3201.4,0.15616]
[1764842559608,1.4817,3201.5,3201.4,1.61666]
[1764842559810,2.41577574,3201.5,3201.4,1.61666]
[1764842560110,2.41827173,3201.5,3201.4,1.62045124]
[1764842560308,0.00249599,3201.5,3201.4,1.62045124]
[1764842560509,0.73459599,3201.5,3201.4,1.62045124]
[1764842561007,1.48419599,3201.5,3201.4,0.87595124]
[1764842561413,1.48419599,3201.5,3201.4,1.62045124]
[1764842562209,0.00249599,3201.5,3201.4,1.62045124]
[1764842562813,0.73459599,3201.5,3201.4,1.62045124]
[1764842563001,1.48419599,3201.5,3201.4,1.62045124]
[1764842563206,0.73459599,3201.5,3201.4,1.62045124]
[1764842565314,1.48419599,3201.5,3201.4,1.62045124]
[1764842565518,1.48419599,3201.5,3201.4,0.87595124]
[1764842565717,1.48419599,3201.5,3201.4,1.62045124]
[1764842566818,1.90769599,3201.5,3201.4,0.15995124]
[1764842567719,2.84288572,3201.5,3201.4,0.15995124]
[1764842569815,2.84288572,3201.5,3201.1,0.00468406]
[1764842570021,2.86468412,3201.2,3201.1,0.00468406]
[1764842570229,1.434,3200.3,3200.2,0.15622]
[1764842570424,2.86468412,3200.3,3200.2,0.15622]
[1764842570920,2.86468412,3200.3,3200.2,0.16022157]
[1764842573729,2.86468412,3200.3,3200.2,0.93452157]
[1764842574120,2.86468412,3200.3,3200.2,1.67162157]
[1764842574520,2.86468412,3200.3,3200.2,0.93452157]
[1764842574920,2.86468412,3200.3,3200.2,1.67162157]
[1764842575321,0.7183,3200.3,3200.2,1.67162157]
[1764842575525,6.07248412,3200.5,3200.4,1.5114]
[1764842575726,1.434,3200.3,3200.2,1.67162157]
[1764842575924,2.86468412,3200.3,3200.2,0.16022157]
[1764842576226,1.434,3199.6,3199.5,4.92655]
[1764842576427,2.86468412,3199.6,3199.5,4.92655]
[1764842577228,2.86468412,3199.6,3199.5,5.66604484]
[1764842577924,2.86468412,3199.6,3199.5,4.92894484]
[1764842578118,2.86468412,3199.6,3199.5,4.15464484]
[1764842578314,2.86468412,3199.6,3199.5,4.92894484]
[1764842578731,2.86468412,3199.6,3199.5,5.66604484]
[1764842579625,2.86468412,3199.6,3199.5,6.09644484]
[1764842580024,2.86468412,3199.6,3199.5,2.10044484]
[1764842582522,0.7183,3199.6,3199.5,2.10044484]
[1764842582925,1.434,3199.6,3199.5,2.10044484]
[1764842583325,1.434,3199.6,3199.5,1.67004484]
[1764842583727,1.434,3199.6,3199.5,2.11094484]
[1764842584425,4.706,3199.8,3199.7,1.4668]
[1764842584727,0.76958406,3199.9,3199.8,1.62304]
[1764842584926,0.00468406,3199.9,3199.8,1.62304]
[1764842586831,3.2078,3200.7,3200.6,1.4668]
[1764842587029,4.20266024,3200.7,3200.6,1.4668]
[1764842587326,0.99486024,3200.7,3200.6,1.4668]
[1764842588123,0.99486024,3200.7,3200.6,1.623]
[1764842589427,2.49306024,3200.7,3200.6,1.623]
[1764842589624,3.92374436,3200.7,3200.6,1.623]
[1764842589831,2.49306024,3200.7,3200.6,1.623]
[1764842590529,1.75976024,3200.7,3200.6,1.623]
[1764842592324,2.49306024,3200.7,3200.6,1.623]
[1764842592628,0.99486024,3200.7,3200.6,1.623]
[1764842592831,1.50288406,3201.0,3200.9,1.62299]
[1764842593026,1.00106152,3201.0,3200.9,1.62299]
[1764842593232,1.76596152,3201.0,3200.9,1.62299]
[1764842594327,2.49926152,3201.0,3200.9,1.62299]
[1764842594541,1.76596152,3201.0,3200.9,1.62299]
[1764842595026,2.49926152,3201.0,3200.9,1.62299]
[1764842595422,1.76596152,3201.0,3200.9,1.62299]
[1764842596130,2.49926152,3201.0,3200.9,1.62299]
[1764842596336,2.49926152,3201.0,3200.9,0.88889]
[1764842596635,2.49926152,3201.0,3200.9,1.62299]
[1764842596937,2.49926152,3201.0,3200.9,0.88889]
[1764842598130,2.49926152,3201.0,3200.9,1.62299]
[1764842599133,2.76286152,3201.0,3200.9,0.15619]
[1764842600230,2.76286152,3201.0,3200.9,1.62299]
[1764842600426,2.49926152,3201.0,3200.9,1.62299]
[1764842600636,1.76596152,3201.0,3200.9,1.62299]
[1764842601042,1.00106152,3201.0,3200.9,1.62299]
[1764842601730,1.76596152,3201.0,3200.9,1.62299]
[1764842603037,1.00106152,3201.0,3200.9,1.62299]
[1764842603236,1.76596152,3201.0,3200.9,1.62299]
[1764842606642,1.00106152,3201.0,3200.9,3.05367412]
[1764842607035,5.31423153,3201.5,3200.9,3.05367412]
[1764842607036,4.70849599,3201.5,3201.4,1.62296]
[1764842607242,5.68686341,3201.5,3201.4,0.88886]
[1764842607439,5.92546341,3201.5,3201.4,0.88886]
[1764842607942,5.92546341,3201.5,3201.4,0.15616]
[1764842608757,5.92546341,3201.5,3200.8,2.03519]
[1764842608758,1.4982,3200.9,3200.8,2.03519]
[1764842608944,1.4982,3200.4,3200.3,3.94518406]
[1764842609143,2.47701613,3200.4,3200.3,3.21248406]
[1764842609643,2.47701613,3200.4,3200.3,3.94518406]
[1764842610340,2.47701613,3200.4,3200.3,4.10140406]
[1764842611045,2.47701613,3200.4,3200.3,4.83550406]
[1764842611243,2.47701613,3200.4,3200.3,4.10140406]
[1764842611945,2.47701613,3200.4,3200.3,4.83550406]
[1764842613446,0.97881613,3200.4,3200.3,4.83550406]
[1764842614246,1.74371613,3200.4,3200.3,4.83550406]
[1764842614647,0.97881613,3200.4,3200.3,4.83550406]
[1764842620848,0.97881613,3200.4,3200.3,8.81395946]
[1764842622262,6.36187288,3201.1,3201.0,0.15618]
[1764842622553,1.476,3200.4,3200.3,4.86920406]
[1764842622749,0.97671004,3200.4,3200.3,4.86920406]
[1764842626264,1.69581004,3200.4,3200.3,4.86920406]
[1764842626465,2.45271004,3200.4,3200.3,4.86920406]
[1764842626858,0.97671004,3200.4,3200.3,4.86920406]
[1764842631565,1.69581004,3200.4,3200.3,4.86920406]
[1764842632770,2.45271004,3200.4,3200.3,4.86920406]
[1764842633269,0.97671004,3200.4,3200.3,4.86920406]
[1764842636571,0.97671004,3200.4,3200.3,8.98758567]
[1764842637969,0.97671004,3200.4,3200.3,5.77978567]
[1764842638170,0.97671004,3200.4,3200.3,8.98758567]
[1764842639272,0.97671004,3200.4,3200.3,10.86658567]
[1764842640280,2.45271004,3200.4,3200.3,10.86658567]
[1764842640474,2.45271004,3200.4,3200.3,6.74820406]
[1764842641071,1.69581004,3200.4,3200.3,6.74820406]
[1764842641271,2.45271004,3200.4,3200.3,6.74820406]
[1764842641981,1.69581004,3200.4,3200.3,3.54040406]
[1764842642173,2.45271004,3200.4,3200.3,2.03990406]
[1764842642375,2.45271004,3200.4,3200.3,2.77270406]
[1764842642568,2.45271004,3200.4,3200.3,2.03990406]
[1764842643080,2.45271004,3200.4,3200.3,2.77270406]
[1764842643977,2.45271004,3200.4,3200.3,3.54040406]
[1764842644382,2.45271004,3200.4,3200.3,2.03990406]
[1764842644981,2.45271004,3200.4,3200.3,3.58010406]
[1764842645375,2.45271004,3200.4,3200.3,1.70110406]
[1764842645576,1.69581004,3200.4,3200.3,1.70110406]
[1764842645882,0.97671004,3200.4,3200.3,1.70110406]
[1764842646182,2.41841004,3200.4,3200.3,1.70110406]
[1764842647371,1.70461004,3200.4,3200.3,1.70110406]
[1764842647883,0.97671004,3200.4,3200.3,1.70110406]
[1764842648083,1.70461004,3200.4,3200.3,1.70110406]
[1764842648780,2.41841004,3200.4,3200.3,1.70110406]
[1764842649184,1.70461004,3200.4,3200.3,1.70110406]
[1764842650086,0.97671004,3200.4,3200.3,1.70110406]
[1764842651479,1.70461004,3200.4,3200.3,1.70110406]
[1764842651886,0.97671004,3200.4,3200.3,1.70110406]
[1764842652188,1.70461004,3200.4,3200.3,1.70110406]
[1764842652383,2.41841004,3200.4,3200.3,1.70110406]
[1764842653187,1.70461004,3200.4,3200.3,1.70110406]
[1764842653388,2.41841004,3200.4,3200.3,1.70110406]
[1764842653690,2.41841004,3200.4,3200.3,0.93610406]
[1764842653881,1.70461004,3200.4,3200.3,1.70110406]
[1764842654883,2.41841004,3200.4,3200.3,1.70110406]
[1764842655492,1.70461004,3200.4,3200.3,1.70110406]
[1764842656084,0.97671004,3200.4,3200.3,1.70110406]
[1764842657698,1.004e-05,3200.4,3200.3,9.03322123]
[1764842657895,1.68284803,3201.3,3201.2,0.7752]
[1764842658193,0.00249599,3201.5,3201.4,1.69636]
[1764842658387,0.00249599,3201.5,3201.4,4.90416]
[1764842658695,0.00249599,3201.5,3201.4,9.00509195]
[1764842660893,1.4417,3201.1,3201.0,3.2078]
[1764842661095,1.4417,3201.1,3201.0,1.5402]
[1764842661283,0.7279,3201.1,3201.0,1.5402]
[1764842661483,1.4417,3201.3,3201.2,0.93137]
[1764842662200,1.4417,3201.3,3201.2,1.69637]
[1764842662588,0.00249599,3201.5,3201.3,1.5402]
[1764842662804,0.7279,3202.3,3202.2,0.15613]
[1764842663005,0.7279,3202.3,3202.2,4.7600418]
[1764842663199,1.4417,3202.3,3202.2,3.36393]
[1764842663398,0.7279,3202.3,3202.2,3.36393]
[1764842663598,0.4444,3203.0,3202.4,0.15612]
[1764842663793,1.17510373,3202.5,3202.4,0.1591464]
[1764842664000,1.88890373,3202.5,3202.4,4.15962084]
[1764842666996,1.88890373,3202.5,3202.4,0.1591464]
[1764842671199,1.88890373,3202.5,3202.4,4.64e-05]
[1764842671401,1.4417,3202.4,3202.3,3.2078]
[1764842672404,1.4417,3202.4,3202.3,3.20998628]
[1764842674911,1.4417,3202.4,3202.3,0.15830628]
[1764842681819,1.4537,3202.2,3202.1,0.00468406]
[1764842682015,0.44720373,3202.5,3202.0,0.15613]
[1764842682321,1.4537,3202.1,3202.0,0.15613]
[1764842682912,1.4537,3202.1,3202.0,0.15840529]
[1764842684122,1.4537,3202.1,3202.0,0.49130529]
[1764842684324,2.88432988,3202.1,3202.0,0.49130529]
[1764842685422,3.80679428,3202.1,3202.0,0.49130529]
[1764842686526,1.90090373,3202.5,3202.4,0.15612]
[1764842686826,2.82388067,3202.5,3202.4,0.15612]
[1764842687126,0.44720373,3202.5,3202.4,0.15612]
[1764842687320,1.37094364,3202.5,3202.4,0.15612]
[1764842687721,0.44720373,3202.5,3202.4,0.15612]
[1764842689119,1.90090373,3202.5,3202.4,0.15612]
[1764842691330,2.82487208,3202.5,3202.4,0.15612]
[1764842695448,0.44720373,3202.5,3202.4,0.15612]
[1764842696838,0.45360373,3202.5,3202.4,0.15612]
[1764842698041,1.16760373,3202.5,3202.4,0.15612]
[1764842698438,0.45360373,3202.5,3202.4,0.15612]
[1764842699643,0.45360373,3202.5,3202.4,4.28728712]
[1764842699942,1.16760373,3202.5,3202.4,4.28728712]
[1764842700247,0.45360373,3202.5,3202.4,4.28728712]
[1764842700643,1.90730373,3202.5,3202.4,0.15612]
[1764842700846,2.8318962,3202.5,3202.4,0.15612]
[1764842704249,1.4959,3202.4,3202.3,3.2078]
[1764842704450,2.42049247,3202.4,3202.3,3.36392]
[1764842708354,3.85072636,3202.4,3202.3,3.36392]
[1764842708947,3.85072636,3202.4,3202.0,0.33517529]
[1764842708948,1.4959,3202.1,3202.0,0.33517529]
[1764842709153,3.85072636,3202.1,3202.0,0.33517529]
[1764842710254,3.85072636,3202.1,3202.0,0.49130529]